{"text_format":"1","workbook":"xlsx","n_sheets":6,"sheets":["Bestellübersicht","Frühstück und Coffee Break","Sandwiches & Apéro","Lunch","Dessert","Getränke"],"not_rendered":{"charts":0,"images":10,"macros":1,"external_links":0,"defined_names":13,"comments":0,"pivot_tables":0},"unopened":[],"bounds":{"document_bytes":16777216,"sheet_cells":100000,"rows_first":2000,"rows_last":500,"rows_between":2000,"halvings":0,"cell_chars":16384,"cell_head_chars":4096},"cells_cut":0,"cells_raw":0,"read":"whole","date_system":"1900"}

{"sheet":"Bestellübersicht","index":0,"n_rows":115,"n_cols":8,"rows_kept":115,"cut":false,"hidden":false,"merged":[[23,1,23,7],[24,1,24,7],[25,1,25,7],[22,1,22,7],[19,1,20,7],[6,1,6,7],[12,1,12,7],[15,1,15,7],[16,1,16,7],[13,1,13,7],[10,1,10,7],[14,2,14,3],[14,6,14,7],[11,1,11,7]]}
[" Bestellung Catering"]
[]
["Bitte bestellen Sie 5 Werktage im Voraus per Mail an neumatt@eurest.ch"]
[]
["Bestellangaben"]
["Navigieren Sie ganz unkompiziert durch das Bestellformular."]
["Name des Bestellers"]
["Telefon"]
["E-Mail"]
["Kostenstelle / Abteilung"]
["Aufladung Verpflegungskarte","CHF "]
["SAP Nummer"]
["Bestelldatum"]
["Art der Bestellung"]
["Datum und Zeit des Events / Lieferung","Datum",null,null,"Zeit"]
["Lieferort (nur bei Lieferung)"]
["Zeit Retouren (nur bei Lieferung)"]
["Service gewünscht / Zeit",null,"von","00.00",null,"bis ","00.00"]
["Zahlungsart"]
["Kommentar"]
[]
["Rechnungsadresse"]
["Firma"]
["Abteilung"]
["Strasse"]
["Ort"]
[]
["Ihre Bestellung","Einheit",null,"Preis/Einheit",null,"Anzahl",null,"Total"]
[{"$f":"'Frühstück und Coffee Break'!A8","v":"Einfaches Frühstück \nFrischer Kaffee oder Tee\nOrangensaft \nKnuspriges Brötchen\nSaisonale Frucht   \nHausgemachtes Flavoured Water   "},{"$f":"'Frühstück und Coffee Break'!B8","v":"pro Person"},{"$f":"'Frühstück und Coffee Break'!C8","v":"CHF"},{"$f":"'Frühstück und Coffee Break'!D8","v":8.1999999999999993},{"$f":"'Frühstück und Coffee Break'!E8","v":0},{"$f":"'Frühstück und Coffee Break'!F8","v":0},{"$f":"'Frühstück und Coffee Break'!G8","v":"CHF"},{"$f":"'Frühstück und Coffee Break'!H8","v":0}]
[{"$f":"'Frühstück und Coffee Break'!A9","v":"Vital Frühstück \nFrischer Kaffee oder Tee\nOrangensaft \nFrisches Gipfeli\nButter und Konfitüre\nBirchermüesli \nSaisonale Frucht  \nHausgemachtes Flavoured Water "},{"$f":"'Frühstück und Coffee Break'!B9","v":"pro Person"},{"$f":"'Frühstück und Coffee Break'!C9","v":"CHF"},{"$f":"'Frühstück und Coffee Break'!D9","v":12.4},{"$f":"'Frühstück und Coffee Break'!E9","v":0},{"$f":"'Frühstück und Coffee Break'!F9","v":0},{"$f":"'Frühstück und Coffee Break'!G9","v":"CHF"},{"$f":"'Frühstück und Coffee Break'!H9","v":0}]
[{"$f":"'Frühstück und Coffee Break'!A10","v":"Vital Frühstück \nFrischer Kaffee oder Tee\nOrangensaft \nFrisches Gipfeli \nButter und Konfitüre\nJogurt mit Früchte Topping\nSaisonale Frucht  \nHausgemachtes Flavoured Water "},{"$f":"'Frühstück und Coffee Break'!B10","v":"pro Person"},{"$f":"'Frühstück und Coffee Break'!C10","v":"CHF"},{"$f":"'Frühstück und Coffee Break'!D10","v":12.4},{"$f":"'Frühstück und Coffee Break'!E10","v":0},{"$f":"'Frühstück und Coffee Break'!F10","v":0},{"$f":"'Frühstück und Coffee Break'!G10","v":"CHF"},{"$f":"'Frühstück und Coffee Break'!H10","v":0}]
[{"$f":"'Frühstück und Coffee Break'!A11","v":"Vital Frühstück \nFrischer Kaffee oder Tee\nOrangensaft \nKnuspriges Brötchen\nButter und Konfitüre\nBirchermüesli \nSaisonale Frucht  \nHausgemachtes Flavoured Water "},{"$f":"'Frühstück und Coffee Break'!B11","v":"pro Person"},{"$f":"'Frühstück und Coffee Break'!C11","v":"CHF"},{"$f":"'Frühstück und Coffee Break'!D11","v":12.4},{"$f":"'Frühstück und Coffee Break'!E11","v":0},{"$f":"'Frühstück und Coffee Break'!F11","v":0},{"$f":"'Frühstück und Coffee Break'!G11","v":"CHF"},{"$f":"'Frühstück und Coffee Break'!H11","v":0}]
[{"$f":"'Frühstück und Coffee Break'!A12","v":"Vital Frühstück \nFrischer Kaffee oder Tee\nOrangensaft \nKnuspriges Brötchen\nButter und Konfitüre\nJogurt mit Früchte Topping\nSaisonale Frucht  \nHausgemachtes Flavoured Water "},{"$f":"'Frühstück und Coffee Break'!B12","v":"pro Person"},{"$f":"'Frühstück und Coffee Break'!C12","v":"CHF"},{"$f":"'Frühstück und Coffee Break'!D12","v":12.4},{"$f":"'Frühstück und Coffee Break'!E12","v":0},{"$f":"'Frühstück und Coffee Break'!F12","v":0},{"$f":"'Frühstück und Coffee Break'!G12","v":"CHF"},{"$f":"'Frühstück und Coffee Break'!H12","v":0}]
[{"$f":"'Frühstück und Coffee Break'!A13","v":"Add-Ons / Snacks\nFrühstück ab 5 Personen bestellbar"},{"$f":"'Frühstück und Coffee Break'!B13","v":0},{"$f":"'Frühstück und Coffee Break'!C13","v":0},{"$f":"'Frühstück und Coffee Break'!D13","v":0},{"$f":"'Frühstück und Coffee Break'!E13","v":0},{"$f":"'Frühstück und Coffee Break'!F13","v":0},{"$f":"'Frühstück und Coffee Break'!G13","v":0},{"$f":"'Frühstück und Coffee Break'!H13","v":0}]
[{"$f":"'Frühstück und Coffee Break'!A14","v":"Buttergipfeli"},{"$f":"'Frühstück und Coffee Break'!B14","v":"pro Stück"},{"$f":"'Frühstück und Coffee Break'!C14","v":"CHF"},{"$f":"'Frühstück und Coffee Break'!D14","v":1.6},{"$f":"'Frühstück und Coffee Break'!E14","v":0},{"$f":"'Frühstück und Coffee Break'!F14","v":0},{"$f":"'Frühstück und Coffee Break'!G14","v":"CHF"},{"$f":"'Frühstück und Coffee Break'!H14","v":0}]
[{"$f":"'Frühstück und Coffee Break'!A15","v":"Laugengipfeli"},{"$f":"'Frühstück und Coffee Break'!B15","v":"pro Stück"},{"$f":"'Frühstück und Coffee Break'!C15","v":"CHF"},{"$f":"'Frühstück und Coffee Break'!D15","v":1.6},{"$f":"'Frühstück und Coffee Break'!E15","v":0},{"$f":"'Frühstück und Coffee Break'!F15","v":0},{"$f":"'Frühstück und Coffee Break'!G15","v":"CHF"},{"$f":"'Frühstück und Coffee Break'!H15","v":0}]
[{"$f":"'Frühstück und Coffee Break'!A16","v":"Rusticogipfeli"},{"$f":"'Frühstück und Coffee Break'!B16","v":"pro Stück"},{"$f":"'Frühstück und Coffee Break'!C16","v":"CHF"},{"$f":"'Frühstück und Coffee Break'!D16","v":1.6},{"$f":"'Frühstück und Coffee Break'!E16","v":0},{"$f":"'Frühstück und Coffee Break'!F16","v":0},{"$f":"'Frühstück und Coffee Break'!G16","v":"CHF"},{"$f":"'Frühstück und Coffee Break'!H16","v":0}]
[{"$f":"'Frühstück und Coffee Break'!A17","v":"Weggli"},{"$f":"'Frühstück und Coffee Break'!B17","v":"pro Stück"},{"$f":"'Frühstück und Coffee Break'!C17","v":"CHF"},{"$f":"'Frühstück und Coffee Break'!D17","v":1.6},{"$f":"'Frühstück und Coffee Break'!E17","v":0},{"$f":"'Frühstück und Coffee Break'!F17","v":0},{"$f":"'Frühstück und Coffee Break'!G17","v":"CHF"},{"$f":"'Frühstück und Coffee Break'!H17","v":0}]
[{"$f":"'Frühstück und Coffee Break'!A18","v":"Semmeli"},{"$f":"'Frühstück und Coffee Break'!B18","v":"pro Stück"},{"$f":"'Frühstück und Coffee Break'!C18","v":"CHF"},{"$f":"'Frühstück und Coffee Break'!D18","v":1.6},{"$f":"'Frühstück und Coffee Break'!E18","v":0},{"$f":"'Frühstück und Coffee Break'!F18","v":0},{"$f":"'Frühstück und Coffee Break'!G18","v":"CHF"},{"$f":"'Frühstück und Coffee Break'!H18","v":0}]
[{"$f":"'Frühstück und Coffee Break'!A19","v":"Früchtebrötli"},{"$f":"'Frühstück und Coffee Break'!B19","v":"pro Stück"},{"$f":"'Frühstück und Coffee Break'!C19","v":"CHF"},{"$f":"'Frühstück und Coffee Break'!D19","v":2},{"$f":"'Frühstück und Coffee Break'!E19","v":0},{"$f":"'Frühstück und Coffee Break'!F19","v":0},{"$f":"'Frühstück und Coffee Break'!G19","v":"CHF"},{"$f":"'Frühstück und Coffee Break'!H19","v":0}]
[{"$f":"'Frühstück und Coffee Break'!A20","v":"Körnerbrötli"},{"$f":"'Frühstück und Coffee Break'!B20","v":"pro Stück"},{"$f":"'Frühstück und Coffee Break'!C20","v":"CHF"},{"$f":"'Frühstück und Coffee Break'!D20","v":2},{"$f":"'Frühstück und Coffee Break'!E20","v":0},{"$f":"'Frühstück und Coffee Break'!F20","v":0},{"$f":"'Frühstück und Coffee Break'!G20","v":"CHF"},{"$f":"'Frühstück und Coffee Break'!H20","v":0}]
[{"$f":"'Frühstück und Coffee Break'!#REF!","v":{"$error":"#REF!"}},{"$f":"'Frühstück und Coffee Break'!#REF!","v":{"$error":"#REF!"}},{"$f":"'Frühstück und Coffee Break'!#REF!","v":{"$error":"#REF!"}},{"$f":"'Frühstück und Coffee Break'!#REF!","v":{"$error":"#REF!"}},{"$f":"'Frühstück und Coffee Break'!#REF!","v":{"$error":"#REF!"}},{"$f":"'Frühstück und Coffee Break'!#REF!","v":{"$error":"#REF!"}},{"$f":"'Frühstück und Coffee Break'!#REF!","v":{"$error":"#REF!"}},{"$f":"'Frühstück und Coffee Break'!#REF!","v":{"$error":"#REF!"}}]
[{"$f":"'Frühstück und Coffee Break'!A26","v":"Süsses und Spezielles"},{"$f":"'Frühstück und Coffee Break'!B26","v":0},{"$f":"'Frühstück und Coffee Break'!C26","v":0},{"$f":"'Frühstück und Coffee Break'!D26","v":0},{"$f":"'Frühstück und Coffee Break'!E26","v":0},{"$f":"'Frühstück und Coffee Break'!F26","v":0},{"$f":"'Frühstück und Coffee Break'!G26","v":0},{"$f":"'Frühstück und Coffee Break'!H26","v":0}]
[{"$f":"'Frühstück und Coffee Break'!A27","v":"Schoggigipfeli, Vanillestange, Nussbrille"},{"$f":"'Frühstück und Coffee Break'!B27","v":"pro Stück"},{"$f":"'Frühstück und Coffee Break'!C27","v":"CHF"},{"$f":"'Frühstück und Coffee Break'!D27","v":2.5},{"$f":"'Frühstück und Coffee Break'!E27","v":0},{"$f":"'Frühstück und Coffee Break'!F27","v":0},{"$f":"'Frühstück und Coffee Break'!G27","v":"CHF"},{"$f":"'Frühstück und Coffee Break'!H27","v":0}]
[{"$f":"'Frühstück und Coffee Break'!A28","v":"Brownie"},{"$f":"'Frühstück und Coffee Break'!B28","v":"pro Stück"},{"$f":"'Frühstück und Coffee Break'!C28","v":"CHF"},{"$f":"'Frühstück und Coffee Break'!D28","v":2.5},{"$f":"'Frühstück und Coffee Break'!E28","v":0},{"$f":"'Frühstück und Coffee Break'!F28","v":0},{"$f":"'Frühstück und Coffee Break'!G28","v":"CHF"},{"$f":"'Frühstück und Coffee Break'!H28","v":0}]
[{"$f":"'Frühstück und Coffee Break'!A29","v":"Fruchtspiessli"},{"$f":"'Frühstück und Coffee Break'!B29","v":"pro Stück"},{"$f":"'Frühstück und Coffee Break'!C29","v":"CHF"},{"$f":"'Frühstück und Coffee Break'!D29","v":2.5},{"$f":"'Frühstück und Coffee Break'!E29","v":0},{"$f":"'Frühstück und Coffee Break'!F29","v":0},{"$f":"'Frühstück und Coffee Break'!G29","v":"CHF"},{"$f":"'Frühstück und Coffee Break'!H29","v":0}]
[{"$f":"'Sandwiches & Apéro'!A7","v":"Kleine Apéro Sandwiches\nLaugenbrötchen, Rusticobrötchen, \nBrioche und Mini Bürli, gefüllt mit\nThon-Mousse, Frischkäse, Rohschinken, Käse und gegrilltem Gemüse\n"},{"$f":"'Sandwiches & Apéro'!B7","v":"pro Stück"},{"$f":"'Sandwiches & Apéro'!C7","v":"CHF"},{"$f":"'Sandwiches & Apéro'!D7","v":3.8},{"$f":"'Sandwiches & Apéro'!E7","v":0},{"$f":"'Sandwiches & Apéro'!F7","v":0},{"$f":"'Sandwiches & Apéro'!G7","v":"CHF"},{"$f":"'Sandwiches & Apéro'!H7","v":0}]
[{"$f":"'Sandwiches & Apéro'!A8","v":"Sandwiches\nSandwiches ab 5 Personen bestellbar\n"},{"$f":"'Sandwiches & Apéro'!B8","v":0},{"$f":"'Sandwiches & Apéro'!C8","v":0},{"$f":"'Sandwiches & Apéro'!D8","v":0},{"$f":"'Sandwiches & Apéro'!E8","v":0},{"$f":"'Sandwiches & Apéro'!F8","v":0},{"$f":"'Sandwiches & Apéro'!G8","v":0},{"$f":"'Sandwiches & Apéro'!H8","v":0}]
[{"$f":"'Sandwiches & Apéro'!A9","v":"Gefülltes Parisette (57cm) \nKnuspriges Parisette gefüllt mit \neiner Variation aus Schinken, Salami, Trutenschinken und\nKäse "},{"$f":"'Sandwiches & Apéro'!B9","v":"pro Stück"},{"$f":"'Sandwiches & Apéro'!C9","v":"CHF"},{"$f":"'Sandwiches & Apéro'!D9","v":26},{"$f":"'Sandwiches & Apéro'!E9","v":0},{"$f":"'Sandwiches & Apéro'!F9","v":0},{"$f":"'Sandwiches & Apéro'!G9","v":"CHF"},{"$f":"'Sandwiches & Apéro'!H9","v":0}]
[{"$f":"'Sandwiches & Apéro'!A10","v":"Focaccia  \t\ngefüllt mit Falafel und Hummus, garniert mit reichlich Salat\n"},{"$f":"'Sandwiches & Apéro'!B10","v":"pro Stück"},{"$f":"'Sandwiches & Apéro'!C10","v":"CHF"},{"$f":"'Sandwiches & Apéro'!D10","v":7.5},{"$f":"'Sandwiches & Apéro'!E10","v":0},{"$f":"'Sandwiches & Apéro'!F10","v":0},{"$f":"'Sandwiches & Apéro'!G10","v":"CHF"},{"$f":"'Sandwiches & Apéro'!H10","v":0}]
[{"$f":"'Sandwiches & Apéro'!A11","v":"Focaccia  \t\ngefüllt mit Tomaten, Mozzarella, Frischkäse und Basilikum"},{"$f":"'Sandwiches & Apéro'!B11","v":"pro Stück"},{"$f":"'Sandwiches & Apéro'!C11","v":"CHF"},{"$f":"'Sandwiches & Apéro'!D11","v":7.5},{"$f":"'Sandwiches & Apéro'!E11","v":0},{"$f":"'Sandwiches & Apéro'!F11","v":0},{"$f":"'Sandwiches & Apéro'!G11","v":"CHF"},{"$f":"'Sandwiches & Apéro'!H11","v":0}]
[{"$f":"'Sandwiches & Apéro'!A12","v":"Zopfchranz\ngefüllt mit Salami, Schinken, Käse und Thon"},{"$f":"'Sandwiches & Apéro'!B12","v":"pro Stück"},{"$f":"'Sandwiches & Apéro'!C12","v":"CHF"},{"$f":"'Sandwiches & Apéro'!D12","v":48},{"$f":"'Sandwiches & Apéro'!E12","v":0},{"$f":"'Sandwiches & Apéro'!F12","v":0},{"$f":"'Sandwiches & Apéro'!G12","v":"CHF"},{"$f":"'Sandwiches & Apéro'!H12","v":0}]
[{"$f":"'Sandwiches & Apéro'!A13","v":"Kalte Häppchen\nKalte Häppchen ab 10 Personen bestellbar"},{"$f":"'Sandwiches & Apéro'!B13","v":0},{"$f":"'Sandwiches & Apéro'!C13","v":0},{"$f":"'Sandwiches & Apéro'!D13","v":0},{"$f":"'Sandwiches & Apéro'!E13","v":0},{"$f":"'Sandwiches & Apéro'!F13","v":0},{"$f":"'Sandwiches & Apéro'!G13","v":0},{"$f":"'Sandwiches & Apéro'!H13","v":0}]
[{"$f":"'Sandwiches & Apéro'!A14","v":"Rohe Gemüsesticks mit Dip Sauce"},{"$f":"'Sandwiches & Apéro'!B14","v":"pro Person"},{"$f":"'Sandwiches & Apéro'!C14","v":"CHF"},{"$f":"'Sandwiches & Apéro'!D14","v":2.2000000000000002},{"$f":"'Sandwiches & Apéro'!E14","v":0},{"$f":"'Sandwiches & Apéro'!F14","v":0},{"$f":"'Sandwiches & Apéro'!G14","v":"CHF"},{"$f":"'Sandwiches & Apéro'!H14","v":0}]
[{"$f":"'Sandwiches & Apéro'!A15","v":"Bruschetta mit frischen Tomaten und Zwiebel"},{"$f":"'Sandwiches & Apéro'!B15","v":"pro Stück"},{"$f":"'Sandwiches & Apéro'!C15","v":"CHF"},{"$f":"'Sandwiches & Apéro'!D15","v":2.8},{"$f":"'Sandwiches & Apéro'!E15","v":0},{"$f":"'Sandwiches & Apéro'!F15","v":0},{"$f":"'Sandwiches & Apéro'!G15","v":"CHF"},{"$f":"'Sandwiches & Apéro'!H15","v":0}]
[{"$f":"'Sandwiches & Apéro'!A16","v":"Mini Pita Brot mit Hummus"},{"$f":"'Sandwiches & Apéro'!B16","v":"pro Person"},{"$f":"'Sandwiches & Apéro'!C16","v":"CHF"},{"$f":"'Sandwiches & Apéro'!D16","v":2.2999999999999998},{"$f":"'Sandwiches & Apéro'!E16","v":0},{"$f":"'Sandwiches & Apéro'!F16","v":0},{"$f":"'Sandwiches & Apéro'!G16","v":"CHF"},{"$f":"'Sandwiches & Apéro'!H16","v":0}]
[{"$f":"'Sandwiches & Apéro'!A17","v":"Spiessli"},{"$f":"'Sandwiches & Apéro'!B17","v":0},{"$f":"'Sandwiches & Apéro'!C17","v":0},{"$f":"'Sandwiches & Apéro'!D17","v":0},{"$f":"'Sandwiches & Apéro'!E17","v":0},{"$f":"'Sandwiches & Apéro'!F17","v":0},{"$f":"'Sandwiches & Apéro'!G17","v":0},{"$f":"'Sandwiches & Apéro'!H17","v":0}]
[{"$f":"'Sandwiches & Apéro'!A18","v":"Tomaten-Mozzarella "},{"$f":"'Sandwiches & Apéro'!B18","v":"pro Stück"},{"$f":"'Sandwiches & Apéro'!C18","v":"CHF"},{"$f":"'Sandwiches & Apéro'!D18","v":3},{"$f":"'Sandwiches & Apéro'!E18","v":0},{"$f":"'Sandwiches & Apéro'!F18","v":0},{"$f":"'Sandwiches & Apéro'!G18","v":"CHF"},{"$f":"'Sandwiches & Apéro'!H18","v":0}]
[{"$f":"'Sandwiches & Apéro'!A19","v":"Käse-Trauben"},{"$f":"'Sandwiches & Apéro'!B19","v":"pro Stück"},{"$f":"'Sandwiches & Apéro'!C19","v":"CHF"},{"$f":"'Sandwiches & Apéro'!D19","v":2.5},{"$f":"'Sandwiches & Apéro'!E19","v":0},{"$f":"'Sandwiches & Apéro'!F19","v":0},{"$f":"'Sandwiches & Apéro'!G19","v":"CHF"},{"$f":"'Sandwiches & Apéro'!H19","v":0}]
[{"$f":"'Sandwiches & Apéro'!A20","v":"Saisonale Früchte  "},{"$f":"'Sandwiches & Apéro'!B20","v":"pro Stück"},{"$f":"'Sandwiches & Apéro'!C20","v":"CHF"},{"$f":"'Sandwiches & Apéro'!D20","v":2.5},{"$f":"'Sandwiches & Apéro'!E20","v":0},{"$f":"'Sandwiches & Apéro'!F20","v":0},{"$f":"'Sandwiches & Apéro'!G20","v":"CHF"},{"$f":"'Sandwiches & Apéro'!H20","v":0}]
[{"$f":"'Sandwiches & Apéro'!A21","v":"Platten\nApéro Platten ab 5 Personen bestellbar"},{"$f":"'Sandwiches & Apéro'!B21","v":0},{"$f":"'Sandwiches & Apéro'!C21","v":0},{"$f":"'Sandwiches & Apéro'!D21","v":0},{"$f":"'Sandwiches & Apéro'!E21","v":0},{"$f":"'Sandwiches & Apéro'!F21","v":0},{"$f":"'Sandwiches & Apéro'!G21","v":0},{"$f":"'Sandwiches & Apéro'!H21","v":0}]
[{"$f":"'Sandwiches & Apéro'!A22","v":"Käse Platte    \n(100g Käse pro Person)\nVerschiedene Sorten an Hart- und Weichkäse\ngarniert mit Trauben und Walnüssen\ndazu servieren wir Ihnen frischer Butterzopf"},{"$f":"'Sandwiches & Apéro'!B22","v":"pro Person"},{"$f":"'Sandwiches & Apéro'!C22","v":"CHF"},{"$f":"'Sandwiches & Apéro'!D22","v":13.5},{"$f":"'Sandwiches & Apéro'!E22","v":0},{"$f":"'Sandwiches & Apéro'!F22","v":0},{"$f":"'Sandwiches & Apéro'!G22","v":"CHF"},{"$f":"'Sandwiches & Apéro'!H22","v":0}]
[{"$f":"'Sandwiches & Apéro'!A23","v":"Fleisch Platte \n(100g Fleisch pro Person)\nTrockenfleisch, Rohschinken, Speck, Salami, Schinken\ngarniert mit Essiggurken, Silberzwiebeln und Tomaten\ndazu servieren wir Ihnen frisches Brot\n"},{"$f":"'Sandwiches & Apéro'!B23","v":"pro Person"},{"$f":"'Sandwiches & Apéro'!C23","v":"CHF"},{"$f":"'Sandwiches & Apéro'!D23","v":15.5},{"$f":"'Sandwiches & Apéro'!E23","v":0},{"$f":"'Sandwiches & Apéro'!F23","v":0},{"$f":"'Sandwiches & Apéro'!G23","v":"CHF"},{"$f":"'Sandwiches & Apéro'!H23","v":0}]
[{"$f":"'Sandwiches & Apéro'!A24","v":"Vegane Platte     \nPita Brot mit Hummus, Edamame, Oliven, Dörrtomaten und Falafel"},{"$f":"'Sandwiches & Apéro'!B24","v":"pro Person"},{"$f":"'Sandwiches & Apéro'!C24","v":"CHF"},{"$f":"'Sandwiches & Apéro'!D24","v":13.5},{"$f":"'Sandwiches & Apéro'!E24","v":0},{"$f":"'Sandwiches & Apéro'!F24","v":0},{"$f":"'Sandwiches & Apéro'!G24","v":"CHF"},{"$f":"'Sandwiches & Apéro'!H24","v":0}]
[{"$f":"'Sandwiches & Apéro'!A25","v":"Warme Häppchen\nWarme Häppchen ab 10 Personen bestellbar "},{"$f":"'Sandwiches & Apéro'!B25","v":0},{"$f":"'Sandwiches & Apéro'!C25","v":0},{"$f":"'Sandwiches & Apéro'!D25","v":0},{"$f":"'Sandwiches & Apéro'!E25","v":0},{"$f":"'Sandwiches & Apéro'!F25","v":0},{"$f":"'Sandwiches & Apéro'!G25","v":0},{"$f":"'Sandwiches & Apéro'!H25","v":0}]
[{"$f":"'Sandwiches & Apéro'!A26","v":"Mini Gemüse-Frühlingsrolle"},{"$f":"'Sandwiches & Apéro'!B26","v":"pro Stück"},{"$f":"'Sandwiches & Apéro'!C26","v":"CHF"},{"$f":"'Sandwiches & Apéro'!D26","v":1.7},{"$f":"'Sandwiches & Apéro'!E26","v":0},{"$f":"'Sandwiches & Apéro'!F26","v":0},{"$f":"'Sandwiches & Apéro'!G26","v":"CHF"},{"$f":"'Sandwiches & Apéro'!H26","v":0}]
[{"$f":"'Sandwiches & Apéro'!A27","v":"Poulet-Satay Spiessli"},{"$f":"'Sandwiches & Apéro'!B27","v":"pro Stück"},{"$f":"'Sandwiches & Apéro'!C27","v":"CHF"},{"$f":"'Sandwiches & Apéro'!D27","v":3.9},{"$f":"'Sandwiches & Apéro'!E27","v":0},{"$f":"'Sandwiches & Apéro'!F27","v":0},{"$f":"'Sandwiches & Apéro'!G27","v":"CHF"},{"$f":"'Sandwiches & Apéro'!H27","v":0}]
[{"$f":"'Sandwiches & Apéro'!A28","v":"Hackbällchen in Tomatensauce, serviert im Glas"},{"$f":"'Sandwiches & Apéro'!B28","v":"pro Stück"},{"$f":"'Sandwiches & Apéro'!C28","v":"CHF"},{"$f":"'Sandwiches & Apéro'!D28","v":5},{"$f":"'Sandwiches & Apéro'!E28","v":0},{"$f":"'Sandwiches & Apéro'!F28","v":0},{"$f":"'Sandwiches & Apéro'!G28","v":"CHF"},{"$f":"'Sandwiches & Apéro'!H28","v":0}]
[{"$f":"'Sandwiches & Apéro'!A29","v":"Apero Schinkengipfel"},{"$f":"'Sandwiches & Apéro'!B29","v":"pro Stück"},{"$f":"'Sandwiches & Apéro'!C29","v":"CHF"},{"$f":"'Sandwiches & Apéro'!D29","v":2},{"$f":"'Sandwiches & Apéro'!E29","v":0},{"$f":"'Sandwiches & Apéro'!F29","v":0},{"$f":"'Sandwiches & Apéro'!G29","v":"CHF"},{"$f":"'Sandwiches & Apéro'!H29","v":0}]
[{"$f":"'Sandwiches & Apéro'!A30","v":"Hot Jalapenos mit Sauerrahm Dip"},{"$f":"'Sandwiches & Apéro'!B30","v":"pro Stück"},{"$f":"'Sandwiches & Apéro'!C30","v":"CHF"},{"$f":"'Sandwiches & Apéro'!D30","v":2.5},{"$f":"'Sandwiches & Apéro'!E30","v":0},{"$f":"'Sandwiches & Apéro'!F30","v":0},{"$f":"'Sandwiches & Apéro'!G30","v":"CHF"},{"$f":"'Sandwiches & Apéro'!H30","v":0}]
[{"$f":"'Sandwiches & Apéro'!A31","v":"Elsässer Flammkuchen\n(ausreichend für ca. 6 Personen)"},{"$f":"'Sandwiches & Apéro'!B31","v":"pro Stück"},{"$f":"'Sandwiches & Apéro'!C31","v":"CHF"},{"$f":"'Sandwiches & Apéro'!D31","v":16.5},{"$f":"'Sandwiches & Apéro'!E31","v":0},{"$f":"'Sandwiches & Apéro'!F31","v":0},{"$f":"'Sandwiches & Apéro'!G31","v":"CHF"},{"$f":"'Sandwiches & Apéro'!H31","v":0}]
[{"$f":"'Sandwiches & Apéro'!A32","v":"Snacks"},{"$f":"'Sandwiches & Apéro'!B32","v":0},{"$f":"'Sandwiches & Apéro'!C32","v":0},{"$f":"'Sandwiches & Apéro'!D32","v":0},{"$f":"'Sandwiches & Apéro'!E32","v":0},{"$f":"'Sandwiches & Apéro'!F32","v":0},{"$f":"'Sandwiches & Apéro'!G32","v":0},{"$f":"'Sandwiches & Apéro'!H32","v":0}]
[{"$f":"'Sandwiches & Apéro'!A33","v":"Marinierte Oliven "},{"$f":"'Sandwiches & Apéro'!B33","v":"pro Person"},{"$f":"'Sandwiches & Apéro'!C33","v":"CHF"},{"$f":"'Sandwiches & Apéro'!D33","v":5.5},{"$f":"'Sandwiches & Apéro'!E33","v":0},{"$f":"'Sandwiches & Apéro'!F33","v":0},{"$f":"'Sandwiches & Apéro'!G33","v":"CHF"},{"$f":"'Sandwiches & Apéro'!H33","v":0}]
[{"$f":"'Sandwiches & Apéro'!A34","v":"Parmesanmöckli"},{"$f":"'Sandwiches & Apéro'!B34","v":"pro Person"},{"$f":"'Sandwiches & Apéro'!C34","v":"CHF"},{"$f":"'Sandwiches & Apéro'!D34","v":6.6},{"$f":"'Sandwiches & Apéro'!E34","v":0},{"$f":"'Sandwiches & Apéro'!F34","v":0},{"$f":"'Sandwiches & Apéro'!G34","v":"CHF"},{"$f":"'Sandwiches & Apéro'!H34","v":0}]
[{"$f":"'Sandwiches & Apéro'!A35","v":"Marinierte Fetawürfel"},{"$f":"'Sandwiches & Apéro'!B35","v":"pro Person"},{"$f":"'Sandwiches & Apéro'!C35","v":"CHF"},{"$f":"'Sandwiches & Apéro'!D35","v":3.1},{"$f":"'Sandwiches & Apéro'!E35","v":0},{"$f":"'Sandwiches & Apéro'!F35","v":0},{"$f":"'Sandwiches & Apéro'!G35","v":"CHF"},{"$f":"'Sandwiches & Apéro'!H35","v":0}]
[{"$f":"'Sandwiches & Apéro'!A36","v":"Around the World"},{"$f":"'Sandwiches & Apéro'!B36","v":0},{"$f":"'Sandwiches & Apéro'!C36","v":0},{"$f":"'Sandwiches & Apéro'!D36","v":0},{"$f":"'Sandwiches & Apéro'!E36","v":0},{"$f":"'Sandwiches & Apéro'!F36","v":0},{"$f":"'Sandwiches & Apéro'!G36","v":0},{"$f":"'Sandwiches & Apéro'!H36","v":0}]
[{"$f":"'Sandwiches & Apéro'!A37","v":"Gerne offerieren wir Ihnen ein massgeschneidertes Angebot in dem wir Ihnen Speisen rund um den Globus zusammenstellen. \nGanz nach Ihrem Geschmack stellen wir verschiedene Speisen auch für \nAllergiker oder spezielle Themen-Events zusammen.\t                                                            Lieferbar ab 15 Personen\n\nPreis je nach gewünschten Speisen auf Anfrage"},{"$f":"'Sandwiches & Apéro'!B37","v":0},{"$f":"'Sandwiches & Apéro'!C37","v":0},{"$f":"'Sandwiches & Apéro'!D37","v":0},{"$f":"'Sandwiches & Apéro'!E37","v":0},{"$f":"'Sandwiches & Apéro'!F37","v":0},{"$f":"'Sandwiches & Apéro'!G37","v":0},{"$f":"'Sandwiches & Apéro'!H37","v":0}]
[{"$f":"Lunch!A7","v":"Tagesmenu aus dem Restaurant"},{"$f":"Lunch!B7","v":"pro Person"},{"$f":"Lunch!C7","v":"CHF"},{"$f":"Lunch!D7","v":10.5},{"$f":"Lunch!E7","v":0},{"$f":"Lunch!F7","v":0},{"$f":"Lunch!G7","v":"CHF"},{"$f":"Lunch!H7","v":0}]
[{"$f":"Lunch!A8","v":"Tagesmenu aus dem Restaurant externe Gäste"},{"$f":"Lunch!B8","v":"pro Person"},{"$f":"Lunch!C8","v":"CHF"},{"$f":"Lunch!D8","v":13.5},{"$f":"Lunch!E8","v":0},{"$f":"Lunch!F8","v":0},{"$f":"Lunch!G8","v":"CHF"},{"$f":"Lunch!H8","v":0}]
[{"$f":"Dessert!A7","v":"Saisonales Tagesdessert im Glas   "},{"$f":"Dessert!B7","v":"pro Stück"},{"$f":"Dessert!C7","v":"CHF"},{"$f":"Dessert!D7","v":1.8},{"$f":"Dessert!E7","v":0},{"$f":"Dessert!F7","v":0},{"$f":"Dessert!G7","v":"CHF"},{"$f":"Dessert!H7","v":0}]
[{"$f":"Dessert!A8","v":"Toblerone-Mousse im Glas"},{"$f":"Dessert!B8","v":"pro Stück"},{"$f":"Dessert!C8","v":"CHF"},{"$f":"Dessert!D8","v":2.2000000000000002},{"$f":"Dessert!E8","v":0},{"$f":"Dessert!F8","v":0},{"$f":"Dessert!G8","v":"CHF"},{"$f":"Dessert!H8","v":0}]
[{"$f":"Dessert!A9","v":"Hausgemachtes Mini Pana Cotta mit saisonalen Früchten  "},{"$f":"Dessert!B9","v":"pro Stück"},{"$f":"Dessert!C9","v":"CHF"},{"$f":"Dessert!D9","v":2.2000000000000002},{"$f":"Dessert!E9","v":0},{"$f":"Dessert!F9","v":0},{"$f":"Dessert!G9","v":"CHF"},{"$f":"Dessert!H9","v":0}]
[{"$f":"Dessert!A10","v":"Saisonaler Fruchtspeiss"},{"$f":"Dessert!B10","v":"pro Stück"},{"$f":"Dessert!C10","v":"CHF"},{"$f":"Dessert!D10","v":2.5},{"$f":"Dessert!E10","v":0},{"$f":"Dessert!F10","v":0},{"$f":"Dessert!G10","v":"CHF"},{"$f":"Dessert!H10","v":0}]
[{"$f":"Getränke!A9","v":"Valser ohne Kohlensäure, PET"},{"$f":"Getränke!B9","v":"0.5 l"},{"$f":"Getränke!C9","v":"CHF"},{"$f":"Getränke!D9","v":3.1},{"$f":"Getränke!E9","v":0},{"$f":"Getränke!F9","v":0},{"$f":"Getränke!G9","v":"CHF"},{"$f":"Getränke!H9","v":0}]
[{"$f":"Getränke!A10","v":"Valser ohne Kohlensäure, PET"},{"$f":"Getränke!B10","v":"1.5l"},{"$f":"Getränke!C10","v":"CHF"},{"$f":"Getränke!D10","v":7},{"$f":"Getränke!E10","v":0},{"$f":"Getränke!F10","v":0},{"$f":"Getränke!G10","v":"CHF"},{"$f":"Getränke!H10","v":0}]
[{"$f":"Getränke!A11","v":"Valser mit Kohlensäure, PET"},{"$f":"Getränke!B11","v":"0.5 l"},{"$f":"Getränke!C11","v":"CHF"},{"$f":"Getränke!D11","v":3.1},{"$f":"Getränke!E11","v":0},{"$f":"Getränke!F11","v":0},{"$f":"Getränke!G11","v":"CHF"},{"$f":"Getränke!H11","v":0}]
[{"$f":"Getränke!A12","v":"Valser mit Kohlensäure, PET"},{"$f":"Getränke!B12","v":"1.5l"},{"$f":"Getränke!C12","v":"CHF"},{"$f":"Getränke!D12","v":7},{"$f":"Getränke!E12","v":0},{"$f":"Getränke!F12","v":0},{"$f":"Getränke!G12","v":"CHF"},{"$f":"Getränke!H12","v":0}]
[{"$f":"Getränke!A13","v":"Säfte und Hausgemachtes"},{"$f":"Getränke!B13","v":0},{"$f":"Getränke!C13","v":0},{"$f":"Getränke!D13","v":0},{"$f":"Getränke!E13","v":0},{"$f":"Getränke!F13","v":0},{"$f":"Getränke!G13","v":0},{"$f":"Getränke!H13","v":0}]
[{"$f":"Getränke!A14","v":"Orangensaft"},{"$f":"Getränke!B14","v":"1 l"},{"$f":"Getränke!C14","v":"CHF"},{"$f":"Getränke!D14","v":7},{"$f":"Getränke!E14","v":0},{"$f":"Getränke!F14","v":0},{"$f":"Getränke!G14","v":"CHF"},{"$f":"Getränke!H14","v":0}]
[{"$f":"Getränke!A15","v":"Hausgemachter Eistee  "},{"$f":"Getränke!B15","v":"1 l"},{"$f":"Getränke!C15","v":"CHF"},{"$f":"Getränke!D15","v":10},{"$f":"Getränke!E15","v":0},{"$f":"Getränke!F15","v":0},{"$f":"Getränke!G15","v":"CHF"},{"$f":"Getränke!H15","v":0}]
[{"$f":"Getränke!A16","v":"Süssgetränke"},{"$f":"Getränke!B16","v":0},{"$f":"Getränke!C16","v":0},{"$f":"Getränke!D16","v":0},{"$f":"Getränke!E16","v":0},{"$f":"Getränke!F16","v":0},{"$f":"Getränke!G16","v":0},{"$f":"Getränke!H16","v":0}]
[{"$f":"Getränke!A17","v":"Coca-Cola"},{"$f":"Getränke!B17","v":"4.5 dl"},{"$f":"Getränke!C17","v":"CHF"},{"$f":"Getränke!D17","v":3.1},{"$f":"Getränke!E17","v":0},{"$f":"Getränke!F17","v":0},{"$f":"Getränke!G17","v":"CHF"},{"$f":"Getränke!H17","v":0}]
[{"$f":"Getränke!A18","v":"Coke Zero"},{"$f":"Getränke!B18","v":"4.5 dl"},{"$f":"Getränke!C18","v":"CHF"},{"$f":"Getränke!D18","v":3.1},{"$f":"Getränke!E18","v":0},{"$f":"Getränke!F18","v":0},{"$f":"Getränke!G18","v":"CHF"},{"$f":"Getränke!H18","v":0}]
[{"$f":"Getränke!A19","v":"Nestea Lemon"},{"$f":"Getränke!B19","v":"5 dl"},{"$f":"Getränke!C19","v":"CHF"},{"$f":"Getränke!D19","v":3.1},{"$f":"Getränke!E19","v":0},{"$f":"Getränke!F19","v":0},{"$f":"Getränke!G19","v":"CHF"},{"$f":"Getränke!H19","v":0}]
[{"$f":"Getränke!A20","v":"Nestea Peach"},{"$f":"Getränke!B20","v":"5 dl"},{"$f":"Getränke!C20","v":"CHF"},{"$f":"Getränke!D20","v":3.1},{"$f":"Getränke!E20","v":0},{"$f":"Getränke!F20","v":0},{"$f":"Getränke!G20","v":"CHF"},{"$f":"Getränke!H20","v":0}]
[{"$f":"Getränke!A21","v":"Rivella rot "},{"$f":"Getränke!B21","v":"5 dl"},{"$f":"Getränke!C21","v":"CHF"},{"$f":"Getränke!D21","v":3.1},{"$f":"Getränke!E21","v":0},{"$f":"Getränke!F21","v":0},{"$f":"Getränke!G21","v":"CHF"},{"$f":"Getränke!H21","v":0}]
[{"$f":"Getränke!A22","v":"Rivella blau "},{"$f":"Getränke!B22","v":"5 dl"},{"$f":"Getränke!C22","v":"CHF"},{"$f":"Getränke!D22","v":3.1},{"$f":"Getränke!E22","v":0},{"$f":"Getränke!F22","v":0},{"$f":"Getränke!G22","v":"CHF"},{"$f":"Getränke!H22","v":0}]
[{"$f":"Getränke!A23","v":"Ramseier Apfelschorle"},{"$f":"Getränke!B23","v":"5 dl"},{"$f":"Getränke!C23","v":"CHF"},{"$f":"Getränke!D23","v":3.1},{"$f":"Getränke!E23","v":0},{"$f":"Getränke!F23","v":0},{"$f":"Getränke!G23","v":"CHF"},{"$f":"Getränke!H23","v":0}]
[{"$f":"Getränke!A24","v":"Tee"},{"$f":"Getränke!B24","v":0},{"$f":"Getränke!C24","v":0},{"$f":"Getränke!D24","v":0},{"$f":"Getränke!E24","v":0},{"$f":"Getränke!F24","v":0},{"$f":"Getränke!G24","v":0},{"$f":"Getränke!H24","v":0}]
[{"$f":"Getränke!A25","v":"Diverse Sorten, assortiert"},{"$f":"Getränke!B25","v":"pro Tasse"},{"$f":"Getränke!C25","v":"CHF"},{"$f":"Getränke!D25","v":3.1},{"$f":"Getränke!E25","v":0},{"$f":"Getränke!F25","v":0},{"$f":"Getränke!G25","v":"CHF"},{"$f":"Getränke!H25","v":0}]
[{"$f":"Getränke!A26","v":"Kaffee"},{"$f":"Getränke!B26","v":0},{"$f":"Getränke!C26","v":0},{"$f":"Getränke!D26","v":0},{"$f":"Getränke!E26","v":0},{"$f":"Getränke!F26","v":0},{"$f":"Getränke!G26","v":0},{"$f":"Getränke!H26","v":0}]
[{"$f":"Getränke!A27","v":"Frischer Kaffee"},{"$f":"Getränke!B27","v":"pro Tasse"},{"$f":"Getränke!C27","v":"CHF"},{"$f":"Getränke!D27","v":3.1},{"$f":"Getränke!E27","v":0},{"$f":"Getränke!F27","v":0},{"$f":"Getränke!G27","v":"CHF"},{"$f":"Getränke!H27","v":0}]
[{"$f":"Getränke!A28","v":"Alkoholische Getränke"},{"$f":"Getränke!B28","v":0},{"$f":"Getränke!C28","v":0},{"$f":"Getränke!D28","v":0},{"$f":"Getränke!E28","v":0},{"$f":"Getränke!F28","v":0},{"$f":"Getränke!G28","v":0},{"$f":"Getränke!H28","v":0}]
[{"$f":"Getränke!A29","v":"Bier"},{"$f":"Getränke!B29","v":0},{"$f":"Getränke!C29","v":0},{"$f":"Getränke!D29","v":0},{"$f":"Getränke!E29","v":0},{"$f":"Getränke!F29","v":0},{"$f":"Getränke!G29","v":0},{"$f":"Getränke!H29","v":0}]
[{"$f":"Getränke!A30","v":"Burgdorfer Bier"},{"$f":"Getränke!B30","v":"33cl"},{"$f":"Getränke!C30","v":"CHF"},{"$f":"Getränke!D30","v":3.5},{"$f":"Getränke!E30","v":0},{"$f":"Getränke!F30","v":0},{"$f":"Getränke!G30","v":"CHF"},{"$f":"Getränke!H30","v":0}]
[{"$f":"Getränke!A31","v":"Weisswein"},{"$f":"Getränke!B31","v":0},{"$f":"Getränke!C31","v":0},{"$f":"Getränke!D31","v":0},{"$f":"Getränke!E31","v":0},{"$f":"Getränke!F31","v":0},{"$f":"Getränke!G31","v":0},{"$f":"Getränke!H31","v":0}]
[{"$f":"Getränke!A32","v":"Féchy AOC"},{"$f":"Getränke!B32","v":"5 dl"},{"$f":"Getränke!C32","v":"CHF"},{"$f":"Getränke!D32","v":14.5},{"$f":"Getränke!E32","v":0},{"$f":"Getränke!F32","v":0},{"$f":"Getränke!G32","v":"CHF"},{"$f":"Getränke!H32","v":0}]
[{"$f":"Getränke!A33","v":"Petit Arvine AOV"},{"$f":"Getränke!B33","v":"7.5 dl"},{"$f":"Getränke!C33","v":"CHF"},{"$f":"Getränke!D33","v":29.5},{"$f":"Getränke!E33","v":0},{"$f":"Getränke!F33","v":0},{"$f":"Getränke!G33","v":"CHF"},{"$f":"Getränke!H33","v":0}]
[{"$f":"Getränke!A34","v":"Rotwein"},{"$f":"Getränke!B34","v":0},{"$f":"Getränke!C34","v":0},{"$f":"Getränke!D34","v":0},{"$f":"Getränke!E34","v":0},{"$f":"Getränke!F34","v":0},{"$f":"Getränke!G34","v":0},{"$f":"Getränke!H34","v":0}]
[{"$f":"Getränke!A35","v":"Pinot Noir Suisse"},{"$f":"Getränke!B35","v":"5 dl"},{"$f":"Getränke!C35","v":"CHF"},{"$f":"Getränke!D35","v":14.5},{"$f":"Getränke!E35","v":0},{"$f":"Getränke!F35","v":0},{"$f":"Getränke!G35","v":"CHF"},{"$f":"Getränke!H35","v":0}]
[{"$f":"Getränke!A36","v":"Pipassa Negrar"},{"$f":"Getränke!B36","v":"7.5 dl"},{"$f":"Getränke!C36","v":"CHF"},{"$f":"Getränke!D36","v":29.5},{"$f":"Getränke!E36","v":0},{"$f":"Getränke!F36","v":0},{"$f":"Getränke!G36","v":"CHF"},{"$f":"Getränke!H36","v":0}]
[]
["Total (inkl. MWST)",null,null,null,null,null,"CHF",{"$f":"SUM(H19:H111)","v":{"$error":"#REF!"}}]
[]
["Vielen Dank für Ihre Bestellung!"]

{"sheet":"Frühstück und Coffee Break","index":1,"n_rows":29,"n_cols":8,"rows_kept":29,"cut":false,"hidden":false,"merged":[[2,0,2,7]]}
[" Bestellung Catering"]
[]
[]
["Navigieren Sie ganz unkompiziert durch das Bestellformular."]
[null,"Einheit",null,"Preis/Einheit",null,"Anzahl",null,"Total"]
["Frühstück \nCombos ab 5 Personen bestellbar"]
["Einfaches Frühstück \nFrischer Kaffee oder Tee\nOrangensaft \nFrisches Gipfeli\nSaisonale Frucht   \nHausgemachtes Flavoured Water   ","pro Person","CHF",8.1999999999999993,null,null,"CHF",{"$f":"IF(F7=0,0,IF(F7<5,D7*5,IF(F7>=5,D7*F7)))","v":0}]
["Einfaches Frühstück \nFrischer Kaffee oder Tee\nOrangensaft \nKnuspriges Brötchen\nSaisonale Frucht   \nHausgemachtes Flavoured Water   ","pro Person","CHF",8.1999999999999993,null,null,"CHF",{"$f":"IF(F8=0,0,IF(F8<5,D8*5,IF(F8>=5,D8*F8)))","v":0}]
["Vital Frühstück \nFrischer Kaffee oder Tee\nOrangensaft \nFrisches Gipfeli\nButter und Konfitüre\nBirchermüesli \nSaisonale Frucht  \nHausgemachtes Flavoured Water ","pro Person","CHF",12.4,null,null,"CHF",0]
["Vital Frühstück \nFrischer Kaffee oder Tee\nOrangensaft \nFrisches Gipfeli \nButter und Konfitüre\nJogurt mit Früchte Topping\nSaisonale Frucht  \nHausgemachtes Flavoured Water ","pro Person","CHF",12.4,null,null,"CHF",0]
["Vital Frühstück \nFrischer Kaffee oder Tee\nOrangensaft \nKnuspriges Brötchen\nButter und Konfitüre\nBirchermüesli \nSaisonale Frucht  \nHausgemachtes Flavoured Water ","pro Person","CHF",12.4,null,null,"CHF",{"$f":"IF(F11=0,0,IF(F11<5,D11*5,IF(F11>=5,D11*F11)))","v":0}]
["Vital Frühstück \nFrischer Kaffee oder Tee\nOrangensaft \nKnuspriges Brötchen\nButter und Konfitüre\nJogurt mit Früchte Topping\nSaisonale Frucht  \nHausgemachtes Flavoured Water ","pro Person","CHF",12.4,null,null,"CHF",0]
["Add-Ons / Snacks\nFrühstück ab 5 Personen bestellbar"]
["Buttergipfeli","pro Stück","CHF",1.6,null,null,"CHF",0]
["Laugengipfeli","pro Stück","CHF",1.6,null,null,"CHF",0]
["Rusticogipfeli","pro Stück","CHF",1.6,null,null,"CHF",0]
["Weggli","pro Stück","CHF",1.6,null,null,"CHF",0]
["Semmeli","pro Stück","CHF",1.6,null,null,"CHF",0]
["Früchtebrötli","pro Stück","CHF",2,null,null,"CHF",0]
["Körnerbrötli","pro Stück","CHF",2,null,null,"CHF",0]
["Saisonale Frucht","pro Stück","CHF",1,null,null,"CHF",{"$f":"IF(F21=0,0,IF(F21<5,D21*5,IF(F21>=5,D21*F21)))","v":0}]
["Jogurt mit Früchte Topping","pro Stück","CHF",1.5,null,null,"CHF",0]
["Jogurt mit Crunch Topping","pro Stück","CHF",1.5,null,null,"CHF",0]
["Hausgemachtes Birchermüesli im Glas","pro Stück","CHF",2.5,null,null,"CHF",0]
["Fruchtsalat im Glas","pro Stück","CHF",2.5,null,null,"CHF",0]
["Süsses und Spezielles",null,null,null,null,null,null,0]
["Schoggigipfeli, Vanillestange, Nussbrille","pro Stück","CHF",2.5,null,null,"CHF",0]
["Brownie","pro Stück","CHF",2.5,null,null,"CHF",0]
["Fruchtspiessli","pro Stück","CHF",2.5,null,null,"CHF",0]

{"sheet":"Sandwiches & Apéro","index":2,"n_rows":37,"n_cols":8,"rows_kept":37,"cut":false,"hidden":false,"merged":[[36,0,36,7],[2,0,2,7]]}
[" Bestellung Catering"]
[]
[]
["Navigieren Sie ganz unkompiziert durch das Bestellformular."]
[null,"Einheit",null,"Preis/Einheit",null,"Anzahl",null,"Total"]
["Znüni Sandwiches\nSandwiches ab 5 Personen bestellbar"]
["Kleine Apéro Sandwiches\nLaugenbrötchen, Rusticobrötchen, \nBrioche und Mini Bürli, gefüllt mit\nThon-Mousse, Frischkäse, Rohschinken, Käse und gegrilltem Gemüse\n","pro Stück","CHF",3.8,null,null,"CHF",{"$f":"IF(F7=0,0,IF(F7<5,D7*5,IF(F7>=5,D7*F7)))","v":0}]
["Sandwiches\nSandwiches ab 5 Personen bestellbar\n"]
["Gefülltes Parisette (57cm) \nKnuspriges Parisette gefüllt mit \neiner Variation aus Schinken, Salami, Trutenschinken und\nKäse ","pro Stück","CHF",26,null,null,"CHF",{"$f":"IF(F9=0,0,IF(F9<5,D9*5,IF(F9>=5,D9*F9)))","v":0}]
["Focaccia  \t\ngefüllt mit Falafel und Hummus, garniert mit reichlich Salat\n","pro Stück","CHF",7.5,null,null,"CHF",{"$f":"IF(F10=0,0,IF(F10<5,D10*5,IF(F10>=5,D10*F10)))","v":0}]
["Focaccia  \t\ngefüllt mit Tomaten, Mozzarella, Frischkäse und Basilikum","pro Stück","CHF",7.5,null,null,"CHF",0]
["Zopfchranz\ngefüllt mit Salami, Schinken, Käse und Thon","pro Stück","CHF",48,null,null,"CHF",0]
["Kalte Häppchen\nKalte Häppchen ab 10 Personen bestellbar"]
["Rohe Gemüsesticks mit Dip Sauce","pro Person","CHF",2.2000000000000002,null,null,"CHF",{"$f":"IF(F14=0,0,IF(F14<5,D14*10,IF(F14>=10,D14*F14)))","v":0}]
["Bruschetta mit frischen Tomaten und Zwiebel","pro Stück","CHF",2.8,null,null,"CHF",{"$f":"IF(F15=0,0,IF(F15<5,D15*10,IF(F15>=10,D15*F15)))","v":0}]
["Mini Pita Brot mit Hummus","pro Person","CHF",2.2999999999999998,null,null,"CHF",0]
["Spiessli",null,null,null,null,null,null,0]
["Tomaten-Mozzarella ","pro Stück","CHF",3,null,null,"CHF",0]
["Käse-Trauben","pro Stück","CHF",2.5,null,null,"CHF",0]
["Saisonale Früchte  ","pro Stück","CHF",2.5,null,null,"CHF",0]
["Platten\nApéro Platten ab 5 Personen bestellbar"]
["Käse Platte    \n(100g Käse pro Person)\nVerschiedene Sorten an Hart- und Weichkäse\ngarniert mit Trauben und Walnüssen\ndazu servieren wir Ihnen frischer Butterzopf","pro Person","CHF",13.5,null,null,"CHF",{"$f":"IF(F22=0,0,IF(F22<5,D22*5,IF(F22>=5,D22*F22)))","v":0}]
["Fleisch Platte \n(100g Fleisch pro Person)\nTrockenfleisch, Rohschinken, Speck, Salami, Schinken\ngarniert mit Essiggurken, Silberzwiebeln und Tomaten\ndazu servieren wir Ihnen frisches Brot\n","pro Person","CHF",15.5,null,null,"CHF",{"$f":"IF(F23=0,0,IF(F23<5,D23*5,IF(F23>=5,D23*F23)))","v":0}]
["Vegane Platte     \nPita Brot mit Hummus, Edamame, Oliven, Dörrtomaten und Falafel","pro Person","CHF",13.5,null,null,"CHF",0]
["Warme Häppchen\nWarme Häppchen ab 10 Personen bestellbar "]
["Mini Gemüse-Frühlingsrolle","pro Stück","CHF",1.7,null,null,"CHF",{"$f":"IF(F26=0,0,IF(F26<10,D26*10,IF(F26>=10,D26*F26)))","v":0}]
["Poulet-Satay Spiessli","pro Stück","CHF",3.9,null,null,"CHF",{"$f":"IF(F27=0,0,IF(F27<10,D27*10,IF(F27>=10,D27*F27)))","v":0}]
["Hackbällchen in Tomatensauce, serviert im Glas","pro Stück","CHF",5,null,null,"CHF",0]
["Apero Schinkengipfel","pro Stück","CHF",2,null,null,"CHF",0]
["Hot Jalapenos mit Sauerrahm Dip","pro Stück","CHF",2.5,null,null,"CHF",0]
["Elsässer Flammkuchen\n(ausreichend für ca. 6 Personen)","pro Stück","CHF",16.5,null,null,"CHF",0]
["Snacks"]
["Marinierte Oliven ","pro Person","CHF",5.5,null,null,"CHF",0]
["Parmesanmöckli","pro Person","CHF",6.6,null,null,"CHF",0]
["Marinierte Fetawürfel","pro Person","CHF",3.1,null,null,"CHF",0]
["Around the World"]
["Gerne offerieren wir Ihnen ein massgeschneidertes Angebot in dem wir Ihnen Speisen rund um den Globus zusammenstellen. \nGanz nach Ihrem Geschmack stellen wir verschiedene Speisen auch für \nAllergiker oder spezielle Themen-Events zusammen.\t                                                            Lieferbar ab 15 Personen\n\nPreis je nach gewünschten Speisen auf Anfrage"]

{"sheet":"Lunch","index":3,"n_rows":8,"n_cols":8,"rows_kept":8,"cut":false,"hidden":false,"merged":[[2,0,2,7]]}
[" Bestellung Catering"]
[]
[]
["Navigieren Sie ganz unkompiziert durch das Bestellformular."]
[null,"Einheit",null,"Preis/Einheit",null,"Anzahl",null,"Total"]
["Lunch"]
["Tagesmenu aus dem Restaurant","pro Person","CHF",10.5,null,null,"CHF",{"$f":"IF(F7=0,0,IF(F7<10,D7*10,IF(F7>=10,D7*F7)))","v":0}]
["Tagesmenu aus dem Restaurant externe Gäste","pro Person","CHF",13.5,null,null,"CHF",{"$f":"IF(F8=0,0,IF(F8<10,D8*10,IF(F8>=10,D8*F8)))","v":0}]

{"sheet":"Dessert","index":4,"n_rows":10,"n_cols":8,"rows_kept":10,"cut":false,"hidden":false,"merged":[[2,0,2,7]]}
[" Bestellung Catering"]
[]
[]
["Navigieren Sie ganz unkompiziert durch das Bestellformular."]
[null,"Einheit",null,"Preis/Einheit",null,"Anzahl",null,"Total"]
["Dessert / Süsses\nDesserts ab 5 Personen bestellbar"]
["Saisonales Tagesdessert im Glas   ","pro Stück","CHF",1.8,null,null,"CHF",{"$f":"IF(F7=0,0,IF(F7<5,D7*5,IF(F7>=5,D7*F7)))","v":0}]
["Toblerone-Mousse im Glas","pro Stück","CHF",2.2000000000000002,null,null,"CHF",{"$f":"IF(F8=0,0,IF(F8<5,D8*5,IF(F8>=5,D8*F8)))","v":0}]
["Hausgemachtes Mini Pana Cotta mit saisonalen Früchten  ","pro Stück","CHF",2.2000000000000002,null,null,"CHF",0]
["Saisonaler Fruchtspeiss","pro Stück","CHF",2.5,null,null,"CHF",0]

{"sheet":"Getränke","index":5,"n_rows":36,"n_cols":8,"rows_kept":36,"cut":false,"hidden":false,"merged":[[2,0,2,7]]}
[" Bestellung Catering"]
[]
[]
["Navigieren Sie ganz unkompiziert durch das Bestellformular."]
[null,"Einheit",null,"Preis/Einheit",null,"Anzahl",null,"Total"]
["Getränke "]
["Alkoholfreie Getränke"]
["Wasser"]
["Valser ohne Kohlensäure, PET","0.5 l","CHF",3.1,null,null,"CHF",{"$f":"D9*F9","v":0}]
["Valser ohne Kohlensäure, PET","1.5l","CHF",7,null,null,"CHF",0]
["Valser mit Kohlensäure, PET","0.5 l","CHF",3.1,null,null,"CHF",0]
["Valser mit Kohlensäure, PET","1.5l","CHF",7,null,null,"CHF",0]
["Säfte und Hausgemachtes"]
["Orangensaft","1 l","CHF",7,null,null,"CHF",0]
["Hausgemachter Eistee  ","1 l","CHF",10,null,null,"CHF",0]
["Süssgetränke"]
["Coca-Cola","4.5 dl","CHF",3.1,null,null,"CHF",{"$f":"D17*F17","v":0}]
["Coke Zero","4.5 dl","CHF",3.1,null,null,"CHF",0]
["Nestea Lemon","5 dl","CHF",3.1,null,null,"CHF",0]
["Nestea Peach","5 dl","CHF",3.1,null,null,"CHF",0]
["Rivella rot ","5 dl","CHF",3.1,null,null,"CHF",0]
["Rivella blau ","5 dl","CHF",3.1,null,null,"CHF",0]
["Ramseier Apfelschorle","5 dl","CHF",3.1,null,null,"CHF",0]
["Tee"]
["Diverse Sorten, assortiert","pro Tasse","CHF",3.1,null,null,"CHF",{"$f":"D25*F25","v":0}]
["Kaffee"]
["Frischer Kaffee","pro Tasse","CHF",3.1,null,null,"CHF",{"$f":"D27*F27","v":0}]
["Alkoholische Getränke"]
["Bier"]
["Burgdorfer Bier","33cl","CHF",3.5,null,null,"CHF",{"$f":"D30*F30","v":0}]
["Weisswein"]
["Féchy AOC","5 dl","CHF",14.5,null,null,"CHF",{"$f":"D32*F32","v":0}]
["Petit Arvine AOV","7.5 dl","CHF",29.5,null,null,"CHF",0]
["Rotwein"]
["Pinot Noir Suisse","5 dl","CHF",14.5,null,null,"CHF",0]
["Pipassa Negrar","7.5 dl","CHF",29.5,null,null,"CHF",0]